Cogmind - Beta 16 @@@ ROGUE MODE // 2025.11.22 @ 16:59:52 Player: Lazz Result: Destroyed by as-91735 with Assembled Heavy Rifle Performance ------------- Evolutions (0) 0 Regions Visited (2) 400 Robots Destroyed (8) 40 Value Destroyed (131) 131 Prototype IDs (0) 0 Alien Tech Used (0) 0 Bonus (0) 0 TOTAL SCORE: 571 Bonus ------- None Cogmind --------- Core Integrity 0/250 Matter 237/300 Energy 78/100 System Corruption 0% Temperature Cool (0) Movement Rolling (115) Ox1 Location -10/Mines Parts ------- > --- POWER (1) -------- (None) > --- PROPULSION (2) --- Compact Wheel > --- UTILITY (2) ------ Large Storage Unit > --- WEAPON (2) ------- (None) > --- INVENTORY (15) --- Light Ion Engine Compact Wheel Large Matter Pod (147) Tractor Beam Mining Laser Peak State ------------ > --- POWER ------------ Light Ion Engine > --- PROPULSION ------- Light Treads Light Treads > --- UTILITY ---------- Large Storage Unit Seismic Detector > --- WEAPON ----------- Light Assault Rifle Light Assault Rifle > --- INVENTORY -------- Light Ion Engine Wheel Compact Wheel Compact Wheel Small Matter Pod Light Armor Plating Tractor Beam Assault Rifle Grenade Launcher Mining Laser [Rating: 8] Favorites ----------- Power Light Ion Engine Engine Light Ion Engine Propulsion Light Treads Treads Light Treads Wheel Compact Wheel Utility Seismic Detector Device Seismic Detector Storage Large Storage Unit Protection Light Armor Plating Weapon Light Assault Rifle Ballistic Gun Light Assault Rifle Launcher Grenade Launcher Build | -11 -10 -10 ------- Run | Yrd Mat Min Slots Evolved . | . . . Power . | . . . Propulsion . | . . . Utility . | . . . Weapon . | . . . Parts Attached 13 | 7 1 5 Power 1 | 1 . . Engine 1 | 1 . . Core . | . . . Reactor . | . . . Propulsion 4 | 2 . 2 Treads 2 | 2 . . Leg . | . . . Wheel 2 | . . 2 Hover . | . . . Flight . | . . . Utility 4 | 2 1 1 Device 1 | 1 . . Storage 2 | 1 1 . Processor . | . . . Hackware . | . . . Protection 1 | . . 1 Artifact . | . . . Weapon 4 | 2 . 2 Energy Gun . | . . . Energy Cannon . | . . . Ballistic Gun 3 | 2 . 1 Ballistic Cannon . | . . . Launcher 1 | . . 1 Special Weapon . | . . . Impact Weapon . | . . . Slashing Weapon . | . . . Piercing Weapon . | . . . Special Melee Weapon . | . . . Unidentified Prototypes . | . . . Parts Lost 10 | . . 10 Power 1 | . . 1 Propulsion 3 | . . 3 Utility 2 | . . 2 Weapon 4 | . . 4 Highest Loss Streak 10 | . . 10 To Critical Strikes . | . . . Average Backups 7 | 3 9 9 Power . | . 1 1 Propulsion 2 | 1 3 2 Utility 1 | . 2 2 Weapon 2 | 1 2 2 Tool/Special . | . . . Unused Backups 6 | . 1 5 Power 1 | . . 1 Propulsion 1 | . . 1 Utility 3 | . 1 2 Weapon 1 | . . 1 Tool/Special . | . . . Average Slot Usage (%) 94 | . 100 83 Engine 12 | . 14 10 Treads 25 | . 28 21 Device 12 | . 14 9 Storage 14 | . 14 14 Ballistic Gun 26 | . 28 23 Peak Build Rating 8 | 7 8 8 Average Rating 6 | 5 7 6 On Entrance 5 | . 7 8 Avg Prop Armor Cover (%) . | . . . Naked Turns . | . . . Heaviest Build 28 | 11 26 28 Greatest Support 40 | 40 40 40 Greatest Overweight (x) 1 | . . 1 Average Overweight (x) . | . . . Largest Inventory Capacity 15 | 8 15 15 Average Capacity 12 | 7 14 15 Most Carried 11 | 7 11 11 Average Carried 7 | 4 9 9 Final Capacity 15 | 8 15 15 Final Carried 10 | 7 10 5 Class Distribution -------------------- 100% | Mutant Dominant Class ---------------- Mutant | -10/Materials Mutant | -10/Mines Resources | -11 -10 -10 ----------- Run | Yrd Mat Min Matter Collected 650 | 310 148 192 Remotely . | . . . Salvage Created 290 | 114 125 51 Parts 18 | 6 12 . Haulers Intercepted . | . . . Recyclers Shooed . | . . . Parts Field Recycled . | . . . Retrieved Matter . | . . . Parts Self-Destructed . | . . . Prevented . | . . . Parts Restored . | . . . Kills | -11 -10 -10 ------- Run | Yrd Mat Min Combat Hostiles Destroyed 14 | . 5 9 Guns 8 | . 5 3 AOE 6 | . . 6 Classes Destroyed 5 | 2 2 1 Tunneler 2 | 2 . . Recycler 1 | 1 . . Swarmer 3 | . 3 . Grunt 2 | . 2 . Assembled 9 | . . 9 Best Kill Streak 9 | 2 3 9 Combat Bots Only 9 | . 3 9 Max Kills in Single Turn 4 | 1 1 4 Gunslinging . | . . . Exploded 3 | . . 3 Melee . | . . . Uniques/NPCs Destroyed . | . . . Combat | -11 -10 -10 -------- Run | Yrd Mat Min Hostile Shots Fired 110 | . 27 83 Missed 31 | . 7 24 Hits 79 | . 20 59 Melee 9 | . . 9 Projectile 70 | . 20 50 Damage Taken 1208 | . 219 989 Core 253 | . 17 236 Absorbed by Shields . | . . . Core Remaining (%) 100 | 100 . . Volleys Fired 47 | 20 19 8 Largest 2 | 2 2 2 Hottest 50 | 40 40 50 Shots Fired 93 | 40 38 15 Gun 90 | 40 38 12 Cannon . | . . . Launcher 3 | . . 3 Special . | . . . Kinetic 90 | 40 38 12 Thermal . | . . . Explosive 3 | . . 3 Electromagnetic . | . . . Robot Hit Streak 11 | 10 11 8 Robot Miss Streak 3 | 3 2 3 Penetration Max . | . . . Secondary Targets . | . . . Shots Hit Robots 66 | 29 28 9 Core Hits 41 | 7 12 22 Critical Kills . | . . . Critical Parts Destroyed . | . . . Critical Strikes . | . . . Melee Attacks . | . . . Impact . | . . . Slashing . | . . . Piercing . | . . . Sneak Attacks . | . . . Combat Hostiles . | . . . Follow-up Attacks . | . . . Damage Inflicted 975 | 224 229 522 Guns 540 | 224 229 87 Cannons . | . . . Explosions 435 | . . 435 Melee . | . . . Ramming . | . . . Kinetic 540 | 224 229 87 Thermal . | . . . Explosive 435 | . . 435 Electromagnetic . | . . . Impact . | . . . Slashing . | . . . Piercing . | . . . Highest Corruption . | . . . Average Corruption . | . . . Corruption Purged . | . . . Corruption Blocked . | . . . Overload Shots . | . . . Overflow Damage 29 | . . 29 Projectiles . | . . . Explosions 29 | . . 29 Melee . | . . . Knockbacks . | . . . Impact . | . . . Kinetic . | . . . Secondary . | . . . Self-Inflicted Damage 51 | . . 51 Shots 2 | . . 2 Rammed . | . . . Targets Rammed . | . . . Kicked . | . . . Crushed . | . . . Highest Temperature 18 | . 18 15 Average Temperature 10 | . 10 11 Received Heat Transfer 109 | . 69 40 Siege Activations . | . . . Martial Activations . | . . . Shielding Activations . | . . . Robots Disrupted . | . . . Combat Hostiles . | . . . Robots Corrupted . | . . . Combat Hostiles . | . . . Parts Fried . | . . . Impact Corruptions . | . . . Robots Melted . | . . . Combat Hostiles . | . . . Parts Melted . | . . . Heat Transferred . | . . . Parts Sabotaged . | . . . Parts Stolen . | . . . Parts Stripped . | . . . Power Chain Reactions . | . . . Alert | -11 -10 -10 ------- Run | Yrd Mat Min Maximum Alert Level . | . . . Low Security (%) 100 | 100 100 100 Level 1 . | . . . Level 2 . | . . . Level 3 . | . . . Level 4 . | . . . Level 5 . | . . . High Security . | . . . Max Security . | . . . Peak Influence 100 | 5 100 31 Initial 31 | . . 31 Average 13 | . 21 12 Influence Increases 162 | 15 127 20 Destroy 0b10 Robot/C 100 | . 100 . Destroy 0b10 Robot/NC 15 | 15 . . Destroy Leader 20 | . 20 . Successful Hack 7 | . 7 . Destroy Structure 20 | . . 20 Influence Decreases 162 | 15 47 100 Entered New Map 49 | . . 49 Time Decay 95 | 15 47 33 Lost Part 18 | . . 18 Squads Dispatched . | . . . Investigation . | . . . Extermination . | . . . Reinforcement . | . . . Assault . | . . . Garrison . | . . . Intercept . | . . . Searches Triggered . | . . . Construction Impeded . | . . . Haulers Reinforced . | . . . Active Scanning Responses . | . . . Cargo Convoy Interrupts . | . . . Stealth | -11 -10 -10 --------- Run | Yrd Mat Min Distress Signals . | . . . Communications Jammed . | . . . Distress Signals . | . . . Times Spotted 24 | . 5 19 Peak Tracking Total 20 | . 3 20 Tactical Retreats 1 | . . 1 Traps | -11 -10 -10 ------- Run | Yrd Mat Min Traps Triggered . | . . . Indirectly . | . . . Trap Hack Attempts . | . . . Triggered . | . . . Disarmed . | . . . Reprogrammed . | . . . Reused . | . . . Traps Extracted . | . . . Installed . | . . . Triggered . | . . . Machines | -11 -10 -10 ---------- Run | Yrd Mat Min Machines Disabled . | . . . Max in Single Turn . | . . . Machines Repaired . | . . . Machines Dismantled . | . . . Machines Sabotaged . | . . . Overloaded Fab Kills . | . . . Hacking | -11 -10 -10 --------- Run | Yrd Mat Min Machines Accessed 1 | . 1 . Terminals 1 | . 1 . Fabricators . | . . . Repair Stations . | . . . Recycling Units . | . . . Scanalyzers . | . . . Garrison Access . | . . . Total Hacks 3 | . 3 . Successful 1 | . 1 . Failed 2 | . 2 . Catastrophic . | . . . Database Lockouts . | . . . Manual 3 | . 3 . Terminals 3 | . 3 . Fabricators . | . . . Repair Stations . | . . . Recycling Units . | . . . Scanalyzers . | . . . Garrison Access . | . . . Terminal Hacks 1 | . 1 . Part Schematic 1 | . 1 . Fabricator Hacks . | . . . Repair Station Hacks . | . . . Recycling Unit Hacks . | . . . Scanalyzer . | . . . Garrison Access Hacks . | . . . Unauthorized Hacks . | . . . Terminals . | . . . Fabricators . | . . . Repair Stations . | . . . Recycling Units . | . . . Scanalyzers . | . . . Garrison Access . | . . . Data Cores Recovered . | . . . Used . | . . . Hacking Detections . | . . . Full Trace Events . | . . . Feedback Events . | . . . Feedback Blocked . | . . . Robot Schematics Acquired . | . . . Robots Built . | . . . Authchips . | . . . Time . | . . . Total Robot Build Rating . | . . . Part Schematics Acquired 1 | . 1 . Parts Built . | . . . Authchips . | . . . Time . | . . . Total Part Build Rating . | . . . Part Studies Acquired . | . . . Parts Repaired . | . . . Time . | . . . Parts Recycled . | . . . Recycled Matter . | . . . Retrieved Matter . | . . . Retrieved Components . | . . . Parts Scanalyzed . | . . . Part Schematics Acquired . | . . . Parts Damaged . | . . . Bothacking | -11 -10 -10 ------------ Run | Yrd Mat Min Used RIF Installer . | . . . Robots Hacked . | . . . Non-combat . | . . . Combat . | . . . Robot Hacks Applied . | . . . Relay Couplers Released . | . . . Fabnet Peak Effective % . | . . . Robots Rewired . | . . . Allies Hacked . | . . . Hacks Repelled . | . . . Allies | -11 -10 -10 -------- Run | Yrd Mat Min Total Allies . | . . . Largest Group . | . . . Highest-Rated Group . | . . . Highest-Rated Ally . | . . . Total Orders . | . . . Ally Attacks . | . . . Total Damage . | . . . Kills . | . . . Allies Corrupted . | . . . Allies Melted . | . . . Intel | -11 -10 -10 ------- Run | Yrd Mat Min Active Infowar (turns) 370 | 53 244 73 Seismic 370 | 53 244 73 Robot Analysis Total . | . . . Derelict Logs Recovered 1 | . . 1 Drone Launches . | . . . Drone Recoveries . | . . . Exploration | -11 -10 -10 ------------- Run | Yrd Mat Min Turns Passed 499 | 151 244 104 Spaces Moved 181 | 57 75 49 Core 8 | 8 . . Treads 167 | 49 75 43 Legs . | . . . Wheels 6 | . . 6 Hover . | . . . Flight . | . . . Fastest Speed 50 | 50 160 90 Average Speed 153 | 144 160 154 Slowest Speed 240 | 160 160 240 Overloaded Moves . | . . . Propulsion Burnouts . | . . . Robots Hopped . | . . . Potential Cave-ins . | . . . Cave-ins Triggered . | . . . Exploration Rate (%) 11 | 4 13 17 Regions Visited 2 Branch Regions 1 Pre-discovered Areas 1 | . . 1 Known Exits Taken . | . . . Unknown Exits Taken 2 | 1 1 . Scrap Searched 1 | . . 1 Spaces Dug . | . . . Terrain Destroyed 26 | . . 26 Melee . | . . . Projectile . | . . . AOE 26 | . . 26 Terrain Rammed . | . . . Walls Destroyed . | . . . Machines Disabled . | . . . Actions | -11 -10 -10 --------- Run | Yrd Mat Min Total 324 | 90 169 65 Wait 69 | . 69 . Move 179 | 56 74 49 Hop . | . . . Pick Up 12 | 7 4 1 Fast Attach 7 | 7 . . Attach 5 | . . 5 Detach . | . . . Swap 2 | . 1 1 Drop 3 | . 2 1 Fire 47 | 20 19 8 Melee . | . . . Ram . | . . . Kick . | . . . Crush . | . . . Escape Stasis . | . . . Rewire . | . . . Trap . | . . . Miscellaneous . | . . . Route ------- -11/Scrapyard -10/Materials -10/Mines History --------- Turn | Location | Event 3 | -11/Scrapyard | Discovered new exit (range 16) 152 | -11/Scrapyard | Entered Materials 308 | -10/Materials | Build established: Mutant 377 | -10/Materials | Discovered new exit (range 6) 396 | -10/Materials | Entered Mines 407 | -10/Mines | Met a Derelict bent on vengeance 453 | -10/Mines | Assembled infested the area 458 | -10/Mines | Assisted by a Guerilla fighting off Assembled 460 | -10/Mines | Learned location of Zion (-7) 492 | -10/Mines | Core integrity fell below 50% 496 | -10/Mines | Core integrity fell below 20% 500 | -10/Mines | Destroyed by as-91735 with Assembled Heavy Rifle Last Messages --------------- 00475_ as-66001 destroyed. 00475_ Destroyed Asb. Hover Unit. 00475_ as-79449 destroyed. 00475_ as-77699 destroyed. 00475_ Grenade Launcher destroyed. 00477_ as-73987 destroyed. 00479_ as-08398 destroyed. 00480_ The unstable cave ceiling collapses. 00485_ Lgt. Armor Plating destroyed. 00485_ as-15794 destroyed. 00487_ Assault Rifle destroyed. 00488_ Lgt. Treads destroyed. 00490_ as-83071 suffers critical hit (Destroy). 00490_ as-83071 destroyed. 00493_ Lgt. Assault Rifle destroyed. 00496_ HV Slug penetrates as-99236. 00496_ as-99236 suffers critical hit (Destroy). 00498_ Wheel destroyed. 00498_ as-50880 suffers critical hit (Destroy). 00498_ as-50880 destroyed. Map ----- +----------------------------------------------------+ | ?????????????????????????????????????????????????? | | ???????????????????????????????????###???????????? | | ??????????????????????????????????## ####???????? | | ??????????????????????????????????# ##??????? | | ?????????????????????????????????## #??????? | | ?????????????????????????????????# #??????? | | ?????????????????????????????????# """ #???????? | | ?????????????????????????????????# """ ##???????? | | ?????????????????????????????????## """ #????????? | | ??????????????????????????????????# ##???????? | | ??????????????????????????????????## ##??????? | | ???????????????????????????????????## #??????? | | ???????????????????????????????????## ##?????? | | ???????????????????????????????##### #?????? | | ???????????????????????????????# #????? | | ???????????????????????????????# ## #???? | | ????????????????????####???????# ### #???? | | ???????????????###### ###?????# #?####### #??? | | ?????????????###% ##????# #????????# #??? | | ???" ######% # ###### #????????? ##??? | | ??? % %%% #?????????###???? | | ???# % aa% ! #???????????????? | | ???????## ### a ########???????????????? | | ?????????????# a#??????????????????????? | | ?????????????## a #??????????????????????? | | ??????????????# ##### @#??????????????????????? | | ??????????????# ????# #?????????????????????? | | ??????????????# ???# #????????????????????? | | ??????????????#???# t #????????????????????? | | ????????????????? % #????????????????????? | | ??????????????? % ????????????????????? | | ??????????????##;## ???????????????????? | | ???????????????#??# ## #######??????????????????? | | ??????????????????# ?# "????????????????????????? | | ??????????????????#??# #????????????????????????? | | ?????????????????????# #????????????????????????? | | ?????????????????????# ?????????????????????????? | | ????????????????????? ?????????????????????????? | | ????????????????????? ??????????????????????????? | | ????????????????????? ??????????????????????????? | | ?????????????????????????????????????????????????? | | ?????????????????????????????????????????????????? | | ?????????????????????????????????????????????????? | | ?????????????????????????????????????????????????? | | ?????????????????????????????????????????????????? | | ?????????????????????????????????????????????????? | | ?????????????????????????????????????????????????? | | ?????????????????????????????????????????????????? | | ?????????????????????????????????????????????????? | | | +----------------------------------------------------+ Best States ------------- Heat Dissipation 25 Energy Generation 10 Energy Capacity 125 Matter Stores 300 Matter Capacity 300 Sight Range 16 Terrain Scan Density 10 Armor Coverage 150 Evasion (%) 40 Recoil Reduction 2 Item Schematics ----------------- Grenade Launcher | -10/Materials | Hacked Robot Schematics ------------------ None Fabricated ------------ Nothing Repaired ---------- Nothing Studied --------- None Alien Tech Used ----------------- None Achievements -------------- None Challenges ------------ None Game ------ Seed FlightComponentMace Manual? 0 Play Time 00:05:33 Cumulative 95.8 hours Start 2025.11.22 @ 16:55:51 End 2025.11.22 @ 16:59:52 Sessions 1 Manual Loads 0 Difficulty Rogue Special Mode None Game No. 137 Rogue 137 Adventurer 0 Explorer 0 Win Type - Total 1 Types 1/0/0/0/0/0/0/0/0/0 Lore% 57 Gallery% 53 Achievement% 39 Wizard Run 0 Options --------- Layout 2 ASCII 0 Keyboard 0 Movement Vi Keybinds 0 Fullscreen 1 Font 16/SmallcapsGlow Map View 50x44 Zoom Use 0% Tactical HUD 1 Map Filters NONE Filters NONE Steam SD RUN: b95bd9ac-a7ca-4f05-ad3a-ce79b87ca184